bitfinex/quotes_SOLUSD_20241214
["timestamp","ask_amount","ask_price","bid_price","bid_amount"]
[1734153667965,23.776884,225.27,225.12,1.6503]
[1734153668259,30.224084,225.27,225.14,7.46267222]
[1734153669347,30.224084,225.27,225.15,7.46267222]
[1734153671960,30.224084,225.27,225.14,7.46267222]
[1734153674453,30.224084,225.27,225.15,7.46267222]
[1734153676958,30.224084,225.27,225.12,1.6503]
[1734153676959,30.224084,225.27,225.18,7.46267222]
[1734153677145,6.4472,225.27,225.18,7.46267222]
[1734153677460,6.4472,225.27,225.15,7.46267222]
[1734153677645,6.4472,225.27,225.14,7.46267222]
[1734153677967,6.4472,225.27,225.15,7.46267222]
[1734153678174,0.8695,225.26,225.15,7.46267222]
[1734153678575,23.776884,225.25,225.15,7.46267222]
[1734153679157,23.776884,225.25,225.16,7.46267222]
[1734153684880,23.776884,225.25,225.15,7.46267222]
[1734153686871,23.776884,225.25,225.16,7.46267222]
[1734153687892,23.776884,225.25,225.17,7.46267222]
[1734153688063,6.4472,225.27,225.2,7.46267222]
[1734153688257,0.8695,225.31,225.21,7.46267222]
[1734153689795,20.0,225.29,225.21,7.46267222]
[1734153690601,23.776884,225.28,225.21,7.46267222]
[1734153691673,23.776884,225.28,225.2,7.46267222]
[1734153692569,23.776884,225.28,225.21,7.46267222]
[1734153694088,23.776884,225.28,225.22,7.46267222]
[1734153694676,23.776884,225.3,225.22,7.46267222]
[1734153695299,23.776884,225.3,225.23,7.46267222]
[1734153697130,23.776884,225.3,225.25,7.46267222]
[1734153697305,5.5468,225.36,225.27,7.46267222]
[1734153698592,20.0,225.33,225.27,7.46267222]
[1734153698766,23.776884,225.32,225.26,7.46267222]
[1734153707987,23.776884,225.32,225.25,7.46267222]
[1734153709290,23.776884,225.32,225.24,7.46267222]
[1734153712798,23.776884,225.32,225.25,7.46267222]
[1734153713103,7.488,225.37,225.28,7.46267222]
[1734153713298,5.5459,225.4,225.29,7.46267222]
[1734153715099,23.776884,225.39,225.29,7.46267222]
[1734153717993,0.8695,225.42,225.26,22.22899195]
[1734153718196,20.0,225.4,225.33,7.46267222]
[1734153718402,20.0,225.4,225.34,7.46267222]
[1734153718703,6.568,225.43,225.34,7.46267222]
[1734153718901,6.568,225.43,225.35,7.46267222]
[1734153719106,6.568,225.43,225.29,0.66558796]
[1734153719107,6.568,225.43,225.34,7.46267222]
[1734153720092,23.776884,225.42,225.34,7.46267222]
[1734153720907,23.776884,225.43,225.34,7.46267222]
[1734153722398,23.776884,225.43,225.35,7.46267222]
[1734153722597,23.776884,225.43,225.36,7.46267222]
[1734153724495,23.776884,225.43,225.35,7.46267222]
[1734153726314,23.776884,225.43,225.37,7.46267222]
[1734153726803,23.776884,225.43,225.36,7.46267222]
[1734153729516,23.776884,225.43,225.37,7.46267222]
[1734153729813,23.776884,225.43,225.31,20.66550235]
[1734153729814,23.776884,225.43,225.38,7.46267222]
[1734153730410,23.776884,225.43,225.39,7.46267222]
[1734153730932,20.0,225.45,225.39,7.46267222]
[1734153731095,23.776884,225.44,225.39,7.46267222]
[1734153731517,23.776884,225.47,225.39,7.46267222]
[1734153732298,23.776884,225.47,225.38,7.46267222]
[1734153732512,23.776884,225.47,225.37,7.46267222]
[1734153733605,23.776884,225.47,225.34,1.5633]
[1734153733808,23.776884,225.45,225.35,7.46267222]
[1734153734216,23.776884,225.45,225.34,9.02597222]
[1734153734649,23.776884,225.45,225.35,7.46267222]
[1734153735798,23.776884,225.45,225.34,9.02597222]
[1734153735998,23.776884,225.45,225.35,7.46267222]
[1734153738108,23.776884,225.45,225.34,9.02597222]
[1734153739315,23.776884,225.45,225.35,7.46267222]
[1734153739834,24.646384,225.45,225.31,20.0]
[1734153740127,24.646384,225.45,225.34,7.46267222]
[1734153740534,23.776884,225.43,225.31,20.0]
[1734153740697,23.776884,225.43,225.28,6.77981402]
[1734153740698,20.0,225.4,225.28,6.77981402]
[1734153740900,20.0,225.4,225.3,7.46267222]
[1734153740901,23.776884,225.39,225.3,7.46267222]
[1734153742306,23.776884,225.39,225.29,7.46267222]
[1734153745221,23.776884,225.39,225.28,7.46267222]
[1734153745831,23.776884,225.39,225.26,20.0]
[1734153746135,23.776884,225.39,225.28,7.46267222]
[1734153747135,20.0,225.36,225.28,7.46267222]
[1734153747313,23.776884,225.35,225.29,7.46267222]
[1734153747631,23.776884,225.35,225.23,6.77981402]
[1734153747841,23.776884,225.35,225.26,7.46267222]
[1734153749831,20.0,225.36,225.31,7.46267222]
[1734153750405,20.0,225.36,225.3,7.46267222]
[1734153750632,20.8695,225.38,225.3,7.46267222]
[1734153751017,23.776884,225.37,225.3,7.46267222]
[1734153751839,23.776884,225.37,225.24,0.6658489]
[1734153752336,23.776884,225.37,225.3,7.46267222]
[1734153757533,23.776884,225.37,225.29,7.46267222]
[1734153759121,23.776884,225.37,225.24,0.6658489]
[1734153759329,23.776884,225.37,225.29,7.46267222]
[1734153760518,23.776884,225.37,225.23,6.77981402]
[1734153760917,23.776884,225.37,225.27,7.46267222]
[1734153762722,23.776884,225.37,225.23,6.77981402]
[1734153762923,23.776884,225.37,225.28,7.46267222]
[1734153763843,23.776884,225.37,225.23,6.77981402]
[1734153764230,23.776884,225.37,225.28,7.46267222]
[1734153770547,23.776884,225.37,225.29,7.46267222]
[1734153774544,23.776884,225.37,225.23,6.77981402]
[1734153774746,23.776884,225.37,225.27,7.46267222]
[1734153779541,23.776884,225.37,225.29,7.46267222]
[1734153780639,23.776884,225.37,225.31,7.46267222]
[1734153783150,23.776884,225.37,225.29,7.46267222]
[1734153784439,23.776884,225.37,225.27,7.46267222]
[1734153784849,23.776884,225.37,225.28,7.46267222]
[1734153785637,23.776884,225.37,225.29,7.46267222]
[1734153795567,23.776884,225.37,225.3,7.46267222]
[1734153800764,23.776884,225.37,225.25,20.0]
[1734153800965,23.776884,225.37,225.28,7.46267222]
[1734153802267,23.776884,225.37,225.27,7.46267222]
[1734153803364,23.776884,225.37,225.23,1.6654]
[1734153803564,23.776884,225.37,225.27,7.46267222]
[1734153803766,23.776884,225.37,225.26,7.46267222]
[1734153808494,23.776884,225.37,225.27,7.46267222]
[1734153812288,23.776884,225.37,225.23,1.6654]
[1734153812289,23.776884,225.37,225.28,7.46267222]
[1734153816902,23.776884,225.37,225.29,7.46267222]
[1734153819292,20.8695,225.38,225.23,1.6654]
[1734153819293,20.0,225.36,225.31,7.46267222]
[1734153820703,23.776884,225.35,225.3,7.46267222]
[1734153822211,23.776884,225.37,225.31,7.46267222]
[1734153828284,23.776884,225.37,225.24,0.66578649]
[1734153828285,23.776884,225.37,225.3,7.46267222]
[1734153830404,23.776884,225.37,225.25,20.0]
[1734153830603,23.776884,225.37,225.3,7.46267222]
[1734153830796,23.776884,225.38,225.3,7.46267222]
[1734153834301,23.776884,225.38,225.31,7.46267222]
[1734153836497,23.776884,225.38,225.3,7.46267222]
[1734153837991,23.776884,225.38,225.24,0.66578649]
[1734153837992,23.776884,225.38,225.25,20.0]
[1734153838316,23.776884,225.38,225.23,1.6654]
[1734153838317,23.776884,225.36,225.27,7.46267222]
[1734153841201,23.776884,225.36,225.28,7.46267222]
[1734153844512,5.5469,225.35,225.23,1.6654]
[1734153844720,23.776884,225.34,225.27,7.46267222]
[1734153844901,23.776884,225.34,225.28,7.46267222]
[1734153846227,23.776884,225.34,225.3,7.46267222]
[1734153846405,23.776884,225.34,225.31,7.46267222]
[1734153849003,23.776884,225.34,225.3,7.46267222]
[1734153850722,23.776884,225.34,225.31,7.46267222]
[1734153855328,23.776884,225.34,225.24,0.66581606]
[1734153855329,23.776884,225.34,225.25,20.0]
[1734153855547,23.776884,225.34,225.29,7.46267222]
[1734153872341,90.28103597,225.41,225.33,7.46267222]
[1734153872342,23.776884,225.37,225.33,7.46267222]
[1734153877225,23.776884,225.37,225.32,7.46267222]
[1734153887546,23.776884,225.37,225.33,7.46267222]
[1734153890371,5.545,225.43,225.36,7.46267222]
[1734153890547,0.8695,225.44,225.37,7.46267222]
[1734153892167,23.776884,225.43,225.37,7.46267222]
[1734153895066,23.776884,225.43,225.36,7.46267222]
[1734153897555,6.504,225.46,225.36,7.46267222]
[1734153897556,23.776884,225.45,225.36,7.46267222]
[1734153901465,23.776884,225.45,225.35,7.46267222]
[1734153905569,23.776884,225.45,225.36,7.46267222]
[1734153906581,23.776884,225.45,225.35,7.46267222]
[1734153907988,23.776884,225.45,225.34,7.46267222]
[1734153908196,23.776884,225.45,225.32,7.46267222]
[1734153908580,5.5447,225.44,225.32,7.46267222]
[1734153909177,23.776884,225.43,225.32,7.46267222]
[1734153910176,23.776884,225.43,225.29,1.511]
[1734153910177,24.646384,225.43,225.29,1.511]
[1734153910384,24.646384,225.43,225.31,7.46267222]
[1734153913685,24.646384,225.43,225.32,7.46267222]
[1734153928494,24.646384,225.43,225.33,7.46267222]
[1734153931306,24.646384,225.43,225.34,7.46267222]
[1734153935223,24.646384,225.43,225.33,7.46267222]
[1734153937037,24.646384,225.43,225.35,7.46267222]
[1734153937370,6.504,225.46,225.37,7.46267222]
[1734153938525,23.776884,225.45,225.37,7.46267222]
[1734153942532,23.776884,225.45,225.38,7.46267222]
[1734153946627,23.776884,225.47,225.38,7.46267222]
[1734153947318,23.776884,225.47,225.39,7.46267222]
[1734153948533,23.776884,225.47,225.41,7.46267222]
[1734153948737,23.776884,225.47,225.4,7.46267222]
[1734153960155,81.5,225.5,225.43,7.46267222]
[1734153960156,23.776884,225.49,225.43,7.46267222]
[1734153960675,23.776884,225.51,225.43,7.46267222]
[1734153960971,23.776884,225.51,225.44,7.46267222]
[1734153961146,5.5428,225.52,225.44,7.46267222]
[1734153962648,23.776884,225.51,225.44,7.46267222]
[1734153962839,23.776884,225.51,225.43,7.46267222]
[1734153966543,23.776884,225.51,225.42,7.46267222]
[1734153969665,23.776884,225.51,225.43,7.46267222]
[1734153969849,23.776884,225.51,225.44,7.46267222]
[1734153970178,23.776884,225.51,225.43,7.46267222]
[1734153972748,23.776884,225.53,225.46,7.46267222]
[1734153973172,23.776884,225.55,225.47,7.46267222]
[1734153973361,5.5419,225.56,225.48,7.46267222]
[1734153974152,81.5,225.61,225.5,7.46267222]
[1734153974358,5.5409,225.6,225.51,7.46267222]
[1734153974560,5.5409,225.6,225.5,7.46267222]
[1734153975449,23.776884,225.59,225.5,7.46267222]
[1734153975646,23.776884,225.59,225.52,7.46267222]
[1734153981474,23.776884,225.59,225.48,0.12549]
[1734153981662,23.776884,225.59,225.54,7.46267222]
[1734153989273,20.0,225.65,225.58,7.46267222]
[1734153989475,0.8695,225.67,225.59,7.46267222]
[1734153989667,5.5389,225.68,225.59,7.46267222]
[1734153990686,23.776884,225.67,225.59,7.46267222]
[1734153991266,23.776884,225.67,225.58,7.46267222]
[1734153991982,23.776884,225.67,225.59,7.46267222]
[1734153992183,23.776884,225.67,225.6,7.46267222]
[1734153992391,23.776884,225.67,225.61,7.46267222]
[1734153994781,23.776884,225.67,225.6,7.46267222]
[1734153995286,23.776884,225.67,225.61,7.46267222]
[1734153998684,23.776884,225.67,225.6,7.46267222]
[1734154004909,23.776884,225.67,225.59,7.46267222]
[1734154005203,23.776884,225.67,225.58,1.5373]
[1734154005407,23.776884,225.67,225.6,7.46267222]
[1734154007191,23.776884,225.67,225.58,1.5373]
[1734154007399,23.776884,225.67,225.6,7.46267222]
[1734154009591,23.776884,225.67,225.61,7.46267222]
[1734154010171,23.776884,225.68,225.61,7.46267222]
[1734154011082,23.776884,225.68,225.62,7.46267222]
[1734154011286,23.776884,225.68,225.63,7.46267222]
[1734154013006,23.776884,225.68,225.64,7.46267222]
[1734154013296,10.0,225.69,225.65,7.46267222]
[1734154015091,10.0,225.69,225.64,7.46267222]
[1734154018279,10.0,225.69,225.63,7.46267222]
[1734154018484,23.776884,225.68,225.61,7.46267222]
[1734154018811,23.776884,225.68,225.6,7.46267222]
[1734154025507,23.776884,225.68,225.61,7.46267222]
[1734154028292,23.776884,225.68,225.58,1.5373]
[1734154028490,23.776884,225.68,225.6,7.46267222]
[1734154029994,23.776884,225.68,225.61,7.46267222]
[1734154030599,23.776884,225.68,225.62,7.46267222]
[1734154031587,23.776884,225.68,225.61,7.46267222]
[1734154049999,23.776884,225.68,225.58,1.5373]
[1734154050203,23.776884,225.68,225.59,7.46267222]
[1734154050422,23.776884,225.68,225.6,7.46267222]
[1734154050819,23.776884,225.68,225.59,7.46267222]
[1734154053007,23.776884,225.68,225.55,0.66476795]
[1734154053308,23.776884,225.64,225.55,7.46267222]
[1734154053634,23.776884,225.66,225.55,7.46267222]
[1734154054208,20.0,225.63,225.55,7.46267222]
[1734154054432,23.776884,225.62,225.56,7.46267222]
[1734154055327,20.0,225.59,225.52,5.32838933]
[1734154055518,23.776884,225.54,225.45,0.66505661]
[1734154055709,23.776884,225.54,225.47,7.46267222]
[1734154056230,23.776884,225.54,225.46,7.46267222]
[1734154056436,23.776884,225.54,225.44,7.46267222]
[1734154058713,23.776884,225.54,225.41,1.5379]
[1734154058916,23.776884,225.54,225.44,7.46267222]
[1734154059531,23.776884,225.54,225.41,1.5379]
[1734154059727,23.776884,225.54,225.44,7.46267222]
[1734154060426,23.776884,225.54,225.42,7.46267222]
[1734154060633,23.776884,225.54,225.43,7.46267222]
[1734154061527,23.776884,225.54,225.4,20.0]
[1734154061528,23.776884,225.54,225.44,7.46267222]
[1734154061917,23.776884,225.54,225.43,7.46267222]
[1734154063535,23.776884,225.52,225.43,7.46267222]
[1734154069022,23.776884,225.52,225.45,7.46267222]
[1734154069332,23.776884,225.54,225.46,7.46267222]
[1734154070040,7.5284,225.55,225.47,7.46267222]
[1734154071741,23.776884,225.54,225.47,7.46267222]
[1734154074432,23.776884,225.56,225.48,7.46267222]
[1734154076039,23.776884,225.56,225.5,7.46267222]
[1734154076235,23.776884,225.56,225.45,20.0]
[1734154076236,7.01,225.6,225.51,7.46267222]
[1734154076436,7.01,225.6,225.52,7.46267222]
[1734154076627,7.01,225.6,225.51,7.46267222]
[1734154078046,23.776884,225.59,225.51,7.46267222]
[1734154078360,23.776884,225.59,225.47,0.66504087]
[1734154078361,23.776884,225.59,225.5,7.46267222]
[1734154079853,23.776884,225.59,225.49,7.46267222]
[1734154080051,23.776884,225.59,225.51,7.46267222]
[1734154081239,23.776884,225.59,225.52,7.46267222]
[1734154082352,23.776884,225.59,225.51,7.46267222]
[1734154089556,23.776884,225.6,225.48,20.66504733]
[1734154089855,23.776884,225.6,225.53,7.46267222]
[1734154090836,0.8695,225.65,225.51,0.12549]
[1734154091038,0.8695,225.65,225.55,7.46267222]
[1734154091934,0.8695,225.65,225.5,49.85068888]
[1734154091935,23.776884,225.63,225.5,20.0]
[1734154092134,23.776884,225.63,225.52,7.46267222]
[1734154092331,23.776884,225.63,225.5,20.0]
[1734154092568,23.776884,225.63,225.51,7.46267222]
[1734154093839,23.776884,225.63,225.52,7.46267222]
[1734154094038,23.776884,225.61,225.52,7.46267222]
[1734154096661,23.776884,225.61,225.53,7.46267222]
[1734154098943,23.776884,225.61,225.52,7.46267222]
[1734154099350,23.776884,225.61,225.53,7.46267222]
[1734154099641,23.776884,225.61,225.54,7.46267222]
[1734154099966,23.776884,225.61,225.55,7.46267222]
[1734154103544,23.776884,225.61,225.54,7.46267222]
[1734154103967,23.776884,225.61,225.53,7.46267222]
[1734154110384,23.776884,225.61,225.55,7.46267222]
[1734154113694,23.776884,225.61,225.56,7.46267222]
[1734154121570,23.776884,225.61,225.45,8.03039578]
[1734154121777,23.776884,225.59,225.5,7.46267222]
[1734154122080,23.776884,225.59,225.54,7.46267222]
[1734154123460,23.776884,225.59,225.49,0.12549]
[1734154123683,23.776884,225.6,225.51,7.46267222]
[1734154127879,23.776884,225.6,225.49,7.46267222]
[1734154128763,23.776884,225.6,225.5,7.46267222]
[1734154131481,23.776884,225.6,225.51,7.46267222]
[1734154131686,23.776884,225.6,225.52,7.46267222]
[1734154134773,23.776884,225.6,225.51,7.46267222]
[1734154143697,23.776884,225.6,225.52,7.46267222]
[1734154144495,23.776884,225.6,225.51,7.46267222]
[1734154145184,23.776884,225.6,225.45,6.3083]
[1734154145185,23.776884,225.6,225.5,7.46267222]
[1734154145390,23.776884,225.6,225.49,7.46267222]
[1734154146498,23.776884,225.58,225.49,7.46267222]
[1734154150285,24.646384,225.58,225.48,7.46267222]
[1734154151010,24.646384,225.58,225.49,7.46267222]
[1734154151710,24.646384,225.58,225.45,20.0]
[1734154151897,24.646384,225.58,225.49,7.46267222]
[1734154153911,23.776884,225.59,225.52,7.46267222]
[1734154155094,23.776884,225.59,225.53,7.46267222]
[1734154156295,6.4097,225.63,225.56,7.46267222]
[1734154157795,23.776884,225.62,225.56,7.46267222]
[1734154158001,23.776884,225.62,225.55,7.46267222]
[1734154160597,23.776884,225.62,225.54,7.46267222]
[1734154163119,23.776884,225.62,225.53,7.46267222]
[1734154164724,23.776884,225.62,225.55,7.46267222]
[1734154167028,0.8695,225.69,225.59,7.46267222]
[1734154167213,0.8695,225.69,225.6,7.46267222]
[1734154167413,0.8695,225.69,225.59,7.46267222]
[1734154168221,23.776884,225.68,225.59,7.46267222]
[1734154176819,23.776884,225.68,225.57,7.46267222]
[1734154177328,23.776884,225.66,225.52,20.0]
[1734154177638,23.776884,225.66,225.51,2.20708296]
[1734154177639,23.776884,225.66,225.54,7.46267222]
[1734154182445,23.776884,225.66,225.55,7.46267222]
[1734154182943,23.776884,225.66,225.54,7.46267222]
[1734154184716,5.5395,225.65,225.53,7.46267222]
[1734154184920,29.842384,225.64,225.51,21.5422]
[1734154185121,29.842384,225.64,225.53,7.46267222]
[1734154186135,29.842384,225.64,225.52,7.46267222]
[1734154188054,23.776884,225.62,225.52,7.46267222]
[1734154190027,23.776884,225.62,225.53,7.46267222]
[1734154192253,23.776884,225.62,225.54,7.46267222]
[1734154194732,23.776884,225.62,225.55,7.46267222]
[1734154195039,23.776884,225.63,225.55,7.46267222]
[1734154197251,23.776884,225.63,225.56,7.46267222]
[1734154197450,20.0,225.66,225.57,7.46267222]
[1734154199026,23.776884,225.65,225.57,7.46267222]
[1734154200036,23.776884,225.65,225.56,7.46267222]
[1734154200539,23.776884,225.65,225.51,20.0]
[1734154200756,23.776884,225.65,225.53,7.46267222]
[1734154201167,23.776884,225.63,225.53,7.46267222]
[1734154204371,23.776884,225.63,225.51,20.0]
[1734154204562,23.776884,225.63,225.53,7.46267222]
[1734154205251,23.776884,225.63,225.51,20.0]
[1734154205449,23.776884,225.63,225.53,7.46267222]
[1734154210982,23.776884,225.63,225.54,7.46267222]
[1734154215299,23.776884,225.63,225.51,20.0]
[1734154215588,23.776884,225.61,225.52,7.46267222]
[1734154226304,23.776884,225.61,225.51,7.46267222]
[1734154226801,5.5407,225.6,225.51,7.46267222]
[1734154226999,23.776884,225.59,225.5,7.46267222]
[1734154227784,23.776884,225.59,225.48,7.46267222]
[1734154229293,23.776884,225.57,225.49,7.46267222]
[1734154230291,7.382,225.56,225.43,0.66516832]
[1734154230510,23.776884,225.55,225.46,7.46267222]
[1734154237105,23.776884,225.55,225.41,20.0]
[1734154237286,23.776884,225.55,225.45,7.46267222]
[1734154238098,23.776884,225.55,225.48,7.46267222]
[1734154239792,23.776884,225.55,225.47,7.46267222]
[1734154240017,29.318884,225.55,225.46,7.46267222]
[1734154240994,29.318884,225.55,225.45,7.46267222]
[1734154243991,29.318884,225.55,225.46,7.46267222]
[1734154246424,29.318884,225.55,225.47,7.46267222]
[1734154247325,23.776884,225.55,225.47,7.46267222]
[1734154251113,23.776884,225.55,225.46,7.46267222]
[1734154257103,23.776884,225.55,225.45,7.46267222]
[1734154258526,23.776884,225.53,225.45,7.46267222]
[1734154259320,23.776884,225.53,225.44,7.46267222]
[1734154260428,23.776884,225.53,225.45,7.46267222]
[1734154261428,23.776884,225.53,225.44,7.46267222]
[1734154261599,23.776884,225.53,225.41,20.0]
[1734154261800,23.776884,225.53,225.43,7.46267222]
[1734154262745,20.0,225.48,225.37,1.6107]
[1734154263027,23.776884,225.47,225.34,0.66542657]
[1734154263322,23.776884,225.47,225.36,7.46267222]
[1734154266429,23.776884,225.47,225.37,7.46267222]
[1734154267433,23.776884,225.47,225.36,7.46267222]
[1734154268136,23.776884,225.45,225.34,7.46267222]
[1734154269116,23.776884,225.45,225.32,2.20526371]
[1734154269117,23.776884,225.47,225.32,1.5398]
[1734154269428,23.776884,225.43,225.32,9.00247222]
[1734154269635,23.776884,225.43,225.33,7.46267222]
[1734154271712,23.776884,225.43,225.32,7.46267222]
[1734154272315,101.5,225.48,225.29,19.6241395]
[1734154272316,23.776884,225.41,225.29,19.6241395]
[1734154273731,5.5456,225.4,225.29,19.6241395]
[1734154273938,23.776884,225.39,225.29,19.6241395]
[1734154277934,23.776884,225.37,225.23,20.66566513]
[1734154278142,23.776884,225.37,225.25,7.46267222]
[1734154278341,23.776884,225.37,225.26,7.46267222]
[1734154278841,23.776884,225.37,225.27,7.46267222]
[1734154280918,23.776884,225.37,225.26,7.46267222]
[1734154281637,23.776884,225.37,225.28,7.46267222]
[1734154283526,23.776884,225.37,225.24,0.12549]
[1734154283828,23.776884,225.37,225.28,7.46267222]
[1734154284545,23.776884,225.37,225.27,7.46267222]
[1734154289732,23.776884,225.37,225.26,7.46267222]
[1734154289930,23.776884,225.37,225.23,20.0]
[1734154289931,23.776884,225.35,225.23,20.66574235]
[1734154290128,31.154584,225.35,225.24,7.46267222]
[1734154290624,31.154584,225.35,225.22,7.46267222]
[1734154291336,31.154584,225.35,225.23,7.46267222]
[1734154294427,31.154584,225.35,225.18,0.66587125]
[1734154294428,31.154584,225.35,225.2,20.0]
[1734154294745,31.154584,225.35,225.22,7.46267222]
[1734154297330,5.5471,225.34,225.19,20.12549]
[1734154297530,23.776884,225.33,225.21,7.46267222]
[1734154299852,23.776884,225.33,225.22,7.46267222]
[1734154301963,20.0,225.3,225.19,0.6659379]
[1734154302164,20.0,225.3,225.21,7.46267222]
[1734154302530,23.776884,225.33,225.21,7.46267222]
[1734154303243,23.776884,225.31,225.17,0.66594646]
[1734154303455,23.776884,225.31,225.2,7.46267222]
[1734154308171,6.5222,225.29,225.16,0.66597563]
[1734154308368,23.776884,225.28,225.18,7.46267222]
[1734154309373,23.776884,225.28,225.16,20.0]
[1734154309374,23.776884,225.28,225.19,7.46267222]
[1734154309582,6.5222,225.29,225.21,7.46267222]
[1734154310478,6.5222,225.29,225.17,0.66597151]
[1734154310479,6.5222,225.29,225.2,7.46267222]
[1734154310774,6.5222,225.29,225.21,7.46267222]
[1734154311154,6.5222,225.29,225.18,0.12549]
[1734154311348,6.5222,225.29,225.2,7.46267222]
[1734154314163,6.5222,225.29,225.21,7.46267222]
[1734154316561,6.5222,225.29,225.2,7.46267222]
[1734154320579,6.5222,225.29,225.19,7.46267222]
[1734154321363,6.5222,225.29,225.17,20.66597151]
[1734154321364,6.5222,225.29,225.2,7.46267222]
[1734154326100,6.5222,225.29,225.19,7.46267222]
[1734154327163,6.5222,225.29,225.2,7.46267222]
[1734154327561,81.5,225.34,225.24,7.46267222]
[1734154327790,6.2824,225.35,225.25,8.12848316]
[1734154327976,0.8695,225.36,225.28,7.46267222]
[1734154333187,0.8695,225.36,225.29,7.46267222]
[1734154334874,23.776884,225.39,225.29,7.46267222]
[1734154335786,23.776884,225.39,225.3,7.46267222]
[1734154335989,6.2824,225.4,225.31,7.46267222]
[1734154336578,6.2824,225.4,225.3,7.46267222]
[1734154340389,23.776884,225.39,225.29,7.46267222]
[1734154340587,23.776884,225.39,225.28,7.46267222]
[1734154340900,23.776884,225.39,225.28,27.46267222]
[1734154342676,23.776884,225.39,225.28,7.46267222]
[1734154342891,23.776884,225.39,225.27,7.46267222]
[1734154346012,29.322784,225.39,225.27,7.46267222]
[1734154347190,29.322784,225.39,225.26,20.0]
[1734154347600,29.322784,225.39,225.26,27.46267222]
[1734154350304,29.322784,225.39,225.28,7.46267222]
[1734154350509,6.2824,225.4,225.31,7.46267222]
[1734154352593,23.776884,225.39,225.31,7.46267222]
[1734154352810,23.776884,225.39,225.3,7.46267222]
[1734154355419,23.776884,225.39,225.29,7.46267222]
[1734154356405,23.776884,225.39,225.3,7.46267222]
[1734154360889,23.776884,225.39,225.31,7.46267222]
[1734154363427,23.776884,225.41,225.33,7.46267222]
[1734154367721,23.776884,225.41,225.37,7.46267222]
[1734154367907,0.8695,225.48,225.38,7.46267222]
[1734154368113,0.8695,225.48,225.39,7.46267222]
[1734154368617,0.8695,225.48,225.36,20.0]
[1734154368814,0.8695,225.48,225.38,7.46267222]
[1734154369520,23.776884,225.47,225.38,7.46267222]
[1734154375121,23.776884,225.47,225.39,7.46267222]
[1734154377530,23.776884,225.47,225.37,7.46267222]
[1734154381513,23.776884,225.47,225.32,2.25744362]
[1734154381707,23.776884,225.47,225.35,7.46267222]
[1734154381910,23.776884,225.47,225.37,7.46267222]
[1734154382211,23.776884,225.47,225.38,7.46267222]
[1734154383928,23.776884,225.47,225.4,7.46267222]
[1734154384129,23.776884,225.47,225.41,7.46267222]
[1734154384316,23.776884,225.47,225.42,7.46267222]
[1734154386221,23.776884,225.47,225.41,7.46267222]
[1734154387038,23.776884,225.49,225.42,7.46267222]
[1734154388236,23.776884,225.49,225.41,7.46267222]
[1734154388914,23.776884,225.49,225.4,7.46267222]
[1734154390644,23.776884,225.49,225.37,0.66532822]
[1734154390837,23.776884,225.49,225.4,7.46267222]
[1734154391226,23.776884,225.49,225.41,7.46267222]
[1734154391731,23.776884,225.49,225.37,0.66532822]
[1734154391932,23.776884,225.49,225.4,7.46267222]
[1734154392343,23.776884,225.49,225.41,7.46267222]
[1734154393126,23.776884,225.49,225.37,0.66532822]
[1734154393435,23.776884,225.49,225.41,7.46267222]
[1734154394038,0.8695,225.53,225.46,7.46267222]
[1734154394373,81.5,225.58,225.42,0.66530424]
[1734154394374,5.5409,225.6,225.49,7.46267222]
[1734154394539,5.5409,225.6,225.5,7.46267222]
[1734154395832,23.776884,225.59,225.5,7.46267222]
[1734154397029,5.5409,225.6,225.5,7.46267222]
[1734154397247,0.8695,225.61,225.51,7.46267222]
[1734154397443,20.0,225.59,225.52,7.46267222]
[1734154398264,0.8695,225.61,225.51,7.46267222]
[1734154398433,0.8695,225.61,225.53,7.46267222]
[1734154398750,23.776884,225.6,225.53,7.46267222]
[1734154399539,23.776884,225.6,225.54,7.46267222]
[1734154399850,23.776884,225.61,225.54,7.46267222]
[1734154400149,23.776884,225.63,225.54,7.46267222]
[1734154401356,23.776884,225.63,225.55,7.46267222]
[1734154401838,6.9266,225.67,225.57,7.46267222]
[1734154402142,6.9266,225.67,225.51,0.66491026]